fUST/lending_fUST_20250226
["ID","MTS","AMOUNT","RATE_DAILY","PERIOD"]
[354445107,1740501049071,-500.0,0.00045386,2]
[354445109,1740501049081,-1000.0,0.00045452,10]
[354445111,1740501049090,-1000.0,0.00045452,10]
[354445113,1740501049100,-1000.0,0.00045452,10]
[354445115,1740501049110,-189.21557083,0.00045452,10]
[354445117,1740501049120,-1000.0,0.00045452,10]
[354445119,1740501049129,-1000.0,0.00045452,10]
[354445121,1740501049139,-963.0,0.00045484,30]
[354445123,1740501049148,-500.0,0.00045484,30]
[354445125,1740501049159,-150.29,0.00045484,30]
[354445127,1740501049169,-500.0,0.00045484,30]
[354445129,1740501049178,-500.0,0.00045484,30]
[354445131,1740501049188,-3600.0,0.00045484,30]
[354445133,1740501049198,-500.0,0.00045484,30]
[354445135,1740501049208,-150.29,0.00045484,30]
[354445137,1740501049219,-150.29,0.00045484,30]
[354445139,1740501049230,-500.0,0.00045484,30]
[354445141,1740501049240,-500.0,0.00045484,30]
[354445143,1740501049250,-939.5109577,0.00045484,30]
[354445145,1740501049263,-150.29,0.00045484,30]
[354445147,1740501049275,-500.0,0.00045484,30]
[354445149,1740501049285,-500.0,0.00045484,30]
[354445152,1740501049295,-500.0,0.00045484,30]
[354445154,1740501049305,-500.0,0.00045486,2]
[354445156,1740501049314,-154409.66,0.000455,30]
[354445158,1740501049325,-500.0,0.00045586,2]
[354445160,1740501049335,-500.0,0.00045686,2]
[354445162,1740501049346,-963.0,0.00045758,30]
[354445164,1740501049356,-500.0,0.00045758,30]
[354445166,1740501049366,-150.29,0.00045758,30]
[354445168,1740501049376,-520.95863708,0.00045758,30]
[354445170,1740501049385,-500.0,0.00045758,30]
[354445172,1740501049395,-3600.0,0.00045758,30]
[354445174,1740501049404,-500.0,0.00045758,30]
[354445176,1740501049414,-150.29,0.00045758,30]
[354445178,1740501049425,-150.29,0.00045758,30]
[354445180,1740501049435,-500.0,0.00045758,30]
[354445182,1740501049445,-500.0,0.00045758,30]
[354445184,1740501049455,-150.29,0.00045758,30]
[354445186,1740501049465,-500.0,0.00045758,30]
[354445188,1740501049474,-500.0,0.00045758,30]
[354445190,1740501049483,-500.0,0.00045758,30]
[354445193,1740501049499,-500.0,0.00045786,2]
[354445195,1740501049511,-350.0,0.00045868,10]
[354445197,1740501049521,-500.0,0.00045886,2]
[354445199,1740501049531,-1000.0,0.00045905,7]
[354445201,1740501049541,-150.0,0.00045973,10]
[354445203,1740501049552,-500.0,0.00045986,2]
[354445205,1740501049561,-50000.0,0.00046,46]
[354445207,1740501049572,-10000.0,0.00046,120]
[354445209,1740501049582,-963.0,0.00046032,30]
[354445211,1740501049591,-500.0,0.00046032,30]
[354445213,1740501049601,-150.29,0.00046032,30]
[354445215,1740501049611,-500.0,0.00046032,30]
[354445217,1740501049622,-3600.0,0.00046032,30]
[354445219,1740501049631,-500.0,0.00046032,30]
[354445221,1740501049641,-150.29,0.00046032,30]
[354445224,1740501049650,-150.29,0.00046032,30]
[354445226,1740501049659,-500.0,0.00046032,30]
[354445228,1740501049669,-500.0,0.00046032,30]
[354445229,1740501049682,-218.33955018,0.00046032,30]
[354445232,1740501049691,-500.0,0.00046032,30]
[354445234,1740501049701,-500.0,0.00046032,30]
[354445236,1740501049711,-500.0,0.00046032,30]
[354445238,1740501049720,-500.0,0.00046086,2]
[354445240,1740501049730,-167.0,0.00046099,30]
[354445242,1740501049739,-159.32513087,0.00046099,30]
[354445244,1740501049749,-349.0,0.00046099,30]
[354445246,1740501049762,-315.0,0.00046099,30]
[354445248,1740501049772,-349.0,0.00046099,30]
[354445250,1740501049782,-315.0,0.00046099,30]
[354445252,1740501049792,-349.0,0.00046099,30]
[354445254,1740501049802,-315.0,0.00046099,30]
[354445256,1740501049813,-349.0,0.00046099,30]
[354445258,1740501049823,-315.0,0.00046099,30]
[354445260,1740501049834,-349.0,0.00046099,30]
[354445262,1740501049843,-315.0,0.00046099,30]
[354445264,1740501049853,-315.0,0.00046099,30]
[354445266,1740501049863,-349.0,0.00046099,30]
[354445268,1740501049872,-315.0,0.00046099,30]
[354445270,1740501049882,-349.0,0.00046099,30]
[354445271,1740501049891,-349.0,0.00046099,30]
[354445272,1740501049901,-315.0,0.00046099,30]
[354445273,1740501049912,-315.0,0.00046099,30]
[354445274,1740501049920,-349.0,0.00046099,30]
[354445275,1740501049929,-315.0,0.00046099,30]
[354445276,1740501049939,-349.0,0.00046099,30]
[354445277,1740501049953,-315.0,0.00046099,30]
[354445278,1740501049962,-315.0,0.00046099,30]
[354445279,1740501049971,-349.0,0.00046099,30]
[354445281,1740501049981,-315.0,0.00046099,30]
[354445283,1740501049993,-349.0,0.00046099,30]
[354445285,1740501050004,-315.0,0.00046099,30]
[354445287,1740501050015,-349.0,0.00046099,30]
[354445290,1740501050024,-315.0,0.00046099,30]
[354445292,1740501050034,-349.0,0.00046099,30]
[354445294,1740501050044,-315.0,0.00046099,30]
[354445296,1740501050053,-349.0,0.00046099,30]
[354445298,1740501050062,-315.0,0.00046099,30]
[354445300,1740501050072,-349.0,0.00046099,30]
[354445302,1740501050081,-315.0,0.00046099,30]
[354445304,1740501050090,-349.0,0.00046099,30]
[354445306,1740501050100,-315.0,0.00046099,30]
[354445308,1740501050110,-349.0,0.00046099,30]
[354445310,1740501050119,-315.0,0.00046099,30]
[354445312,1740501050128,-349.0,0.00046099,30]
[354445314,1740501050137,-315.0,0.00046099,30]
[354445316,1740501050146,-349.0,0.00046099,30]
[354445318,1740501050156,-315.0,0.00046099,30]
[354445320,1740501050165,-451.02595286,0.00046099,30]
[354445322,1740501050174,-315.0,0.00046099,30]
[354445324,1740501050184,-315.0,0.00046099,30]
[354445326,1740501050194,-315.0,0.00046099,30]
[354445328,1740501050203,-293.49389301,0.00046099,30]
[354445330,1740501050214,-1000.0,0.00046126,7]
[354445332,1740501050224,-1002.26787618,0.00046146,10]
[354445334,1740501050234,-500.53966456,0.00046146,10]
[354445336,1740501050243,-500.0,0.00046186,2]
[354445338,1740501050254,-791.06504211,0.00046245,10]
[354445341,1740501050265,-1500.0,0.00046255,7]
[354445343,1740501050274,-1073.46436203,0.00046257,10]
[354445345,1740501050283,-500.0,0.00046286,2]
[354445347,1740501050293,-963.0,0.00046306,30]
[354445349,1740501050302,-904.72150329,0.00046306,30]
[354445351,1740501050312,-150.29,0.00046306,30]
[354445353,1740501050322,-500.0,0.00046306,30]
[354445355,1740501050331,-3600.0,0.00046306,30]
[354445357,1740501050341,-752.15004214,0.00046306,30]
[354445359,1740501050350,-152.4663746,0.00046306,30]
[354445361,1740501050360,-216.26979815,0.00046306,30]
[354445363,1740501050370,-500.0,0.00046306,30]
[354445365,1740501050379,-500.0,0.00046306,30]
[354445367,1740501050389,-500.0,0.00046306,30]
[354445369,1740501050399,-500.0,0.00046306,30]
[354445371,1740501050408,-500.0,0.00046306,30]
[354445373,1740501050418,-21330.8355391,0.00046342,120]
[354445375,1740501050427,-500.0,0.00046386,2]
[354445377,1740501050436,-450.0,0.00046416,10]
[354445379,1740501050445,-3270.0398979,0.00046449,4]
[354445381,1740501050455,-500.0,0.00046486,2]
[354445383,1740501050464,-500.0,0.000465,30]
[354445385,1740501050473,-10000.0,0.000465,90]
[354445387,1740501050483,-250.0,0.00046521,10]
[354445389,1740501050494,-159.870676,0.00046548,2]
[354445391,1740501050504,-6574.90236452,0.00046551,2]
[354445393,1740501050514,-963.0,0.0004658,30]
[354445395,1740501050523,-179.19297794,0.0004658,30]
[354445397,1740501050533,-500.0,0.0004658,30]
[354445399,1740501050543,-3600.0,0.0004658,30]
[354445401,1740501050554,-500.0,0.0004658,30]
[354445402,1740501050563,-794.87696107,0.0004658,30]
[354445404,1740501050574,-500.0,0.0004658,30]
[354445405,1740501050584,-500.0,0.0004658,30]
[354445407,1740501050593,-500.0,0.0004658,30]
[354445408,1740501050603,-500.0,0.00046586,2]
[354445410,1740501050613,-500.0,0.00046686,2]
[354445411,1740501050622,-189.07275,0.00046691,120]
[354445413,1740501050632,-500.0,0.00046786,2]
[354445415,1740501050642,-154409.66,0.000468,30]
[354445416,1740501050652,-963.0,0.00046854,30]
[354445418,1740501050662,-500.0,0.00046854,30]
[354445419,1740501050672,-3600.0,0.00046854,30]
[354445420,1740501050682,-500.0,0.00046854,30]
[354445422,1740501050692,-500.0,0.00046854,30]
[354445423,1740501050702,-500.0,0.00046854,30]
[354445425,1740501050712,-500.0,0.00046854,30]
[354445427,1740501050722,-68649.84022598,0.0004688,120]
[354445428,1740501050732,-500.0,0.00046886,2]
[354445430,1740501050742,-550.0,0.00046964,10]
[354445431,1740501050752,-500.0,0.00046986,2]
[354445433,1740501050763,-50000.0,0.00047,47]
[354445434,1740501050774,-10000.0,0.00047,100]
[354445436,1740501050785,-513.0,0.00047,30]
[354445437,1740501050795,-304.0316685,0.00047068,10]
[354445439,1740501050805,-500.0,0.00047086,2]
[354445441,1740501050815,-963.0,0.00047128,30]
[354445442,1740501050824,-850.44482089,0.00047128,30]
[354445444,1740501050834,-3600.0,0.00047128,30]
[354445446,1740501050843,-500.0,0.00047128,30]
[354445447,1740501050854,-500.0,0.00047128,30]
[354445449,1740501050864,-500.0,0.00047128,30]
[354445451,1740501050875,-501.94560662,0.00047128,30]
[354445452,1740501050885,-1171.5200777,0.0004714,30]
[354445454,1740501050895,-1412.15184921,0.00047173,10]
[354445456,1740501050908,-500.0,0.00047186,2]
[354445457,1740501050917,-500.0,0.00047286,2]
[354445459,1740501050927,-1000.0,0.00047312,7]
[354445461,1740501050937,-500.0,0.00047386,2]
[354445474,1740501051125,-151.0,0.00047396,2]
[354445476,1740501051151,-366.29449853,0.00047396,2]
[354445478,1740501051162,-963.0,0.00047402,30]
[354445480,1740501051171,-3600.0,0.00047402,30]
[354445481,1740501051181,-654.59301166,0.00047402,30]
[354445483,1740501051191,-500.0,0.00047402,30]
[354445485,1740501051202,-500.0,0.00047402,30]
[354445486,1740501051212,-500.0,0.00047486,2]
[354445488,1740501051221,-791.06504211,0.00047486,11]
[354445490,1740501051232,-10000.0,0.000475,100]
[354445491,1740501051242,-650.0,0.00047512,10]
[354445493,1740501051252,-1000.0,0.00047541,7]
[354445495,1740501051264,-500.0,0.00047586,2]
[354445496,1740501051274,-267.71493481,0.0004762,7]
[354445498,1740501051284,-963.0,0.00047676,30]
[354445500,1740501051293,-3600.0,0.00047676,30]
[354445501,1740501051303,-500.0,0.00047676,30]
[354445503,1740501051313,-500.0,0.00047676,30]
[354445505,1740501051323,-151.0,0.00047682,90]
[354445506,1740501051333,-185.0,0.00047682,90]
[354445508,1740501051347,-500.0,0.00047686,2]
[354445510,1740501051357,-500.0,0.00047786,2]
[354445512,1740501051368,-1000.0,0.00047815,7]
[354445513,1740501051378,-500.0,0.00047886,2]
[354445515,1740501051387,-153.0,0.00047947,30]
[354445517,1740501051397,-153.0,0.00047947,30]
[354445518,1740501051407,-557.5005723,0.00047947,30]
[354445520,1740501051416,-153.0,0.00047947,30]
[354445522,1740501051426,-153.0,0.00047947,30]
[354445523,1740501051436,-153.0,0.00047947,30]
[354445525,1740501051446,-153.0,0.00047947,30]
[354445527,1740501051456,-154.8524317,0.00047947,30]
[354445528,1740501051466,-557.5005723,0.00047947,30]
[354445530,1740501051479,-154.8524317,0.00047947,30]
[354445532,1740501051489,-557.5005723,0.00047947,30]
[354445533,1740501051499,-153.0,0.00047947,30]
[354445534,1740501051511,-153.0,0.00047947,30]
[354445535,1740501051521,-153.0,0.00047947,30]
[354445536,1740501051530,-153.0,0.00047947,30]
[354445537,1740501051540,-154.8524317,0.00047947,30]
[354445538,1740501051550,-557.5005723,0.00047947,30]
[354445539,1740501051560,-153.0,0.00047947,30]
[354445540,1740501051569,-154.8524317,0.00047947,30]
[354445541,1740501051579,-557.5005723,0.00047947,30]
[354445542,1740501051589,-963.0,0.0004795,30]
[354445543,1740501051599,-3600.0,0.0004795,30]
[354445544,1740501051609,-500.0,0.0004795,30]
[354445545,1740501051618,-500.0,0.0004795,30]
[354445547,1740501051628,-500.0,0.00047986,2]
[354445548,1740501051638,-50000.0,0.00048,48]
[354445550,1740501051648,-500.0,0.00048,30]
[354445552,1740501051657,-750.0,0.0004806,10]
[354445554,1740501051667,-500.0,0.00048086,2]
[354445556,1740501051678,-154409.66,0.000481,30]
[354445558,1740501051687,-500.0,0.00048186,2]
[354445561,1740501051697,-159.870676,0.00048197,2]
[354445563,1740501051707,-963.0,0.00048224,30]
[354445565,1740501051716,-3600.0,0.00048224,30]
[354445567,1740501051726,-500.0,0.00048224,30]
[354445569,1740501051735,-500.0,0.00048224,30]
[354445571,1740501051746,-1247.0,0.0004824,120]
[354445573,1740501051755,-1247.0,0.0004824,120]
[354445575,1740501051765,-1247.0,0.0004824,120]
[354445577,1740501051774,-1247.0,0.0004824,120]
[354445579,1740501051783,-1247.0,0.0004824,120]
[354445581,1740501051793,-1247.0,0.0004824,120]
[354445583,1740501051803,-1247.0,0.0004824,120]
[354445585,1740501051813,-1338.000001,0.0004824,120]
[354445587,1740501051823,-311.0,0.0004827,81]
[354445589,1740501051834,-500.0,0.00048286,2]
[354445591,1740501051844,-500.0,0.00048386,2]
[354445593,1740501051854,-1500.0,0.00048471,10]
[354445595,1740501051864,-500.0,0.00048486,2]
[354445597,1740501051874,-307.3512036,0.00048495,30]
[354445599,1740501051883,-963.0,0.00048498,30]
[354445601,1740501051893,-3600.0,0.00048498,30]
[354445604,1740501051903,-500.0,0.00048498,30]
[354445606,1740501051915,-500.0,0.00048498,30]
[354445608,1740501051925,-500.0,0.00048586,2]
[354445610,1740501051935,-850.0,0.00048608,10]
[354445612,1740501051944,-355.4206398,0.00048632,30]
[354445614,1740501051954,-355.4206398,0.00048632,30]
[354445616,1740501051963,-355.4206398,0.00048632,30]
[354445618,1740501051973,-355.4206398,0.00048632,30]
[354445620,1740501051983,-355.4206398,0.00048632,30]
[354445622,1740501051994,-355.4206398,0.00048632,30]
[354445624,1740501052004,-355.4206398,0.00048632,30]
[354445626,1740501052015,-355.4206398,0.00048632,30]
[354445628,1740501052024,-355.4206398,0.00048632,30]
[354445630,1740501052034,-355.4206398,0.00048632,30]
[354445632,1740501052043,-355.4206398,0.00048632,30]
[354445634,1740501052053,-355.4206398,0.00048632,30]
[354445636,1740501052064,-355.4206398,0.00048632,30]
[354445638,1740501052073,-355.4206398,0.00048632,30]
[354445640,1740501052083,-355.4206398,0.00048632,30]
[354445642,1740501052093,-355.4206398,0.00048632,30]
[354445644,1740501052103,-355.4206398,0.00048632,30]
[354445646,1740501052112,-355.4206398,0.00048632,30]
[354445648,1740501052122,-355.4206398,0.00048632,30]
[354445650,1740501052131,-355.4206398,0.00048632,30]
[354445652,1740501052141,-355.4206398,0.00048632,30]
[354445654,1740501052150,-355.4206398,0.00048632,30]
[354445656,1740501052160,-710.5838168,0.00048632,30]
[354445658,1740501052169,-355.4206398,0.00048632,30]
[354445660,1740501052179,-355.4206398,0.00048632,30]
[354445662,1740501052188,-536.2323004,0.00048632,30]
[354445664,1740501052198,-500.0,0.00048686,2]
[354445667,1740501052208,-791.06504211,0.00048728,11]
[354445669,1740501052217,-1500.0,0.0004875,10]
[354445671,1740501052227,-1500.0,0.0004875,10]
[354445673,1740501052237,-1500.0,0.0004875,10]
[354445675,1740501052246,-1500.0,0.0004875,10]
[354445677,1740501052257,-557.5005723,0.00048769,30]
[354445679,1740501052267,-154.8524317,0.00048769,30]
[354445681,1740501052277,-153.0,0.00048769,30]
[354445683,1740501052286,-153.0,0.00048769,30]
[354445685,1740501052296,-557.5005723,0.00048769,30]
[354445687,1740501052305,-154.8524317,0.00048769,30]
[354445689,1740501052315,-557.5005723,0.00048769,30]
[354445691,1740501052325,-154.8524317,0.00048769,30]
[354445693,1740501052334,-154.8524317,0.00048769,30]
[354445695,1740501052344,-557.5005723,0.00048769,30]
[354445697,1740501052353,-153.0,0.00048769,30]
[354445699,1740501052363,-163.3406037,0.00048769,30]
[354445701,1740501052372,-154.8524317,0.00048769,30]
[354445703,1740501052382,-153.0,0.00048769,30]
[354445705,1740501052392,-154.8524317,0.00048769,30]
[354445707,1740501052401,-154.8524317,0.00048769,30]
[354445710,1740501052411,-154.8524317,0.00048769,30]
[354445712,1740501052420,-153.0,0.00048769,30]
[354445714,1740501052431,-154.8524317,0.00048769,30]
[354445716,1740501052440,-154.8524317,0.00048769,30]
[354445718,1740501052450,-153.0,0.00048769,30]
[354445720,1740501052460,-154.8524317,0.00048769,30]
[354445722,1740501052469,-154.8524317,0.00048769,30]
[354445724,1740501052480,-154.8524317,0.00048769,30]
[354445726,1740501052489,-154.8524317,0.00048769,30]
[354445728,1740501052498,-963.0,0.00048772,30]
[354445730,1740501052509,-3600.0,0.00048772,30]
[354445732,1740501052519,-500.0,0.00048772,30]
[354445734,1740501052528,-500.0,0.00048772,30]
[354445736,1740501052538,-500.0,0.00048786,2]
[354445738,1740501052547,-500.0,0.00048886,2]
[354445740,1740501052557,-500.0,0.00048986,2]
[354445742,1740501052567,-50000.0,0.00049,49]
[354445744,1740501052577,-6128.0,0.00049,120]
[354445746,1740501052587,-500.0,0.00049,18]
[354445748,1740501052597,-500.0,0.00049,18]
[354445750,1740501052606,-963.0,0.00049046,30]
[354445752,1740501052616,-3600.0,0.00049046,30]
[354445754,1740501052626,-500.0,0.00049046,30]
[354445756,1740501052635,-500.0,0.00049046,30]
[354445758,1740501052645,-500.0,0.00049086,2]
[354445760,1740501052655,-6574.90236452,0.00049087,2]
[354445762,1740501052664,-950.0,0.00049156,10]
[354445764,1740501052675,-500.0,0.00049186,2]
[354445765,1740501052684,-500.0,0.00049286,2]
[354445766,1740501052694,-20000.0,0.000493,120]
[354445767,1740501052704,-20000.0,0.000493,120]
[354445768,1740501052713,-20000.0,0.000493,120]
[354445769,1740501052723,-20000.0,0.000493,120]
[354445770,1740501052732,-20000.0,0.000493,120]
[354445771,1740501052742,-150.0,0.000493,10]
[354445772,1740501052751,-500.0,0.00049315,120]
[354445773,1740501052762,-963.0,0.0004932,30]
[354445774,1740501052772,-3600.0,0.0004932,30]
[354445775,1740501052782,-532.37804932,0.0004932,30]
[354445776,1740501052792,-939.08312612,0.0004932,30]
[354445777,1740501052801,-500.0,0.00049386,2]
[354445778,1740501052811,-151.0,0.000494,24]
[354445779,1740501052821,-154409.66,0.000494,30]
[354445780,1740501052831,-500.0,0.00049452,120]
[354445781,1740501052842,-255.75021008,0.00049471,28]
[354445782,1740501052851,-500.0,0.00049486,2]
[354445783,1740501052861,-500.0,0.00049586,2]
[354445784,1740501052872,-500.0,0.00049589,120]
[354445785,1740501052882,-963.0,0.00049594,30]
[354445786,1740501052892,-3600.0,0.00049594,30]
[354445787,1740501052903,-151.0,0.000496,24]
[354445788,1740501052917,-500.0,0.00049686,2]
[354445789,1740501052927,-1050.0,0.00049704,10]
[354445790,1740501052936,-552.23670387,0.00049726,120]
[354445791,1740501052947,-500.0,0.00049786,2]
[354445792,1740501052957,-1000.0,0.000498,90]
[354445793,1740501052967,-151.0,0.000498,22]
[354445794,1740501052977,-350.93296103,0.00049848,10]
[354445795,1740501052987,-963.0,0.00049868,30]
[354445796,1740501052997,-3600.0,0.00049868,30]
[354445797,1740501053006,-521.53,0.00049886,2]
[354445798,1740501053015,-621.4645933,0.00049896,30]
[354445799,1740501053024,-791.06504211,0.00049969,11]
[354445800,1740501053034,-50000.0,0.0005,50]
[354445801,1740501053043,-200.0,0.0005,120]
[354445802,1740501053052,-215.20871366,0.0005,20]
[354445803,1740501053062,-524.41022499,0.0005,10]
[354445804,1740501053071,-533.52311875,0.0005,120]
[354445805,1740501053081,-199800.00272853,0.0005,30]
[354445806,1740501053091,-817.25154136,0.0005,30]
[354445807,1740501053100,-404.89480143,0.0005,120]
[354445808,1740501053110,-1000.0,0.0005,120]
[354445809,1740501053120,-1000.0,0.0005,120]
[354445810,1740501053130,-1000.0,0.0005,120]
[354445811,1740501053139,-1000.0,0.0005,120]
[354445812,1740501053149,-500.0,0.0005,120]
[354445813,1740501053159,-1000.0,0.0005,30]
[354445814,1740501053169,-2000.0,0.0005,90]
[354445815,1740501053178,-4237.68549007,0.0005,7]
[354445816,1740501053188,-4237.68549007,0.0005,10]
[354445817,1740501053198,-963.0,0.00050142,30]
[354445818,1740501053207,-3600.0,0.00050142,30]
[354445819,1740501053218,-3270.0398979,0.00050235,4]
[354445820,1740501053228,-1150.0,0.00050252,10]
[354445821,1740501053238,-964.0,0.00050415,30]
[354445822,1740501053248,-3616.0,0.00050415,30]
[354445823,1740501053259,-1250.0,0.000508,10]
[354445824,1740501053269,-50000.0,0.00051,51]
[354445825,1740501053280,-61280.0,0.00051,120]
[354445826,1740501053290,-418.6037262,0.00051027,30]
[354445827,1740501053300,-791.06504211,0.0005121,12]
[354445828,1740501053310,-1350.0,0.00051348,10]
[354445829,1740501053319,-6574.90236452,0.00051622,2]
[354445830,1740501053329,-252.0965,0.00051671,120]
[354445831,1740501053339,-2000.0,0.00051719,120]
[354445832,1740501053348,-1000.0,0.000518,120]
[354445833,1740501053358,-1450.0,0.00051896,10]
[354445834,1740501053367,-1500.0,0.00051971,10]
[354445835,1740501053378,-1500.0,0.00051971,10]
[354445836,1740501053389,-1500.0,0.00051971,10]
[354445837,1740501053399,-1233.03955882,0.00051971,10]
[354445838,1740501053409,-160.0,0.00051999,60]
[354445839,1740501053420,-50000.0,0.00052,52]
[354445840,1740501053429,-60617.34136192,0.00052,120]
[354445841,1740501053439,-223031.51,0.00052,90]
[354445842,1740501053449,-6128.0,0.00052,120]
[354445843,1740501053460,-467266.78,0.00052,90]
[354445844,1740501053470,-1333.04129838,0.00052444,10]
[354445845,1740501053479,-791.06504211,0.00052452,12]
[354445846,1740501053489,-1171.5200777,0.000529,30]
[354445847,1740501053498,-160.0,0.00052999,60]
[354445848,1740501053509,-50000.0,0.00053,53]
[354445849,1740501053519,-1014020.90061539,0.00053,120]
[354445850,1740501053528,-1288.96247905,0.00053,120]
[354445851,1740501053602,-500.01,0.00053,30]
[354445852,1740501053612,-778.385,0.00053064,98]
[354445853,1740501053622,-791.06504211,0.00053693,12]
[354445854,1740501053632,-1000.0,0.000538,120]
[354445855,1740501053641,-21330.8355391,0.000539,120]
[354445856,1740501053651,-255.75021008,0.000539,28]
[354445857,1740501053660,-5000.0,0.00053998,120]
[354445858,1740501053670,-160.70196287,0.00053999,60]
[354445859,1740501053679,-2000.0,0.00053999,120]
[354445860,1740501053688,-50000.0,0.00054,54]
[354445861,1740501053698,-1816468.57178473,0.00054,120]
[354445862,1740501054046,-56219.81274021,0.00054,120]
[354445863,1740501054058,-9801.57378885,0.00054,120]
[354445864,1740501054071,-2369.34571316,0.00054,120]
[354445865,1740501072440,5000.0,0.0002,10]
[354445867,1740501283436,172.1269,0.00013699,2]
[354445868,1740501296076,160.0,0.0002,10]
[354445870,1740502024832,50221.0,0.0002,30]
[354445871,1740502137512,500.0,0.0002,10]
[354445872,1740502165129,-4756.00194578,0.00015196,2]
[354445925,1740502233846,-243.99805422,0.00015044,2]
[354445926,1740502233856,-166.66666666,0.0001525,2]
[354445927,1740502233866,-180.28846374,0.0001525,2]
[354445928,1740502233876,-300.0,0.00015349,2]
[354445929,1740502233886,-1859.04681538,0.0001535,2]
[354445930,1740502234546,-2000.0,0.0001535,2]
[354445931,1740502234593,-21040.95318462,0.0001535,2]
[354445932,1740502234603,-250.0,0.0001535,2]
[354445933,1740502234613,-297.4716009,0.00015665,2]
[354445934,1740502234623,-288.60048682,0.00015995,2]
[354445935,1740502234633,-4319.68211278,0.000162,2]
[354445936,1740502234643,-1303.29261488,0.00016242,2]
[354445937,1740502234790,-18300.58429991,0.00016242,2]
[354445938,1740502234800,-2115.0,0.00016261,2]
[354445939,1740502234810,-2113.0,0.00016261,2]
[354445940,1740502234821,-2113.0,0.00016261,2]
[354445941,1740502234831,-2113.0,0.00016261,2]
[354445942,1740502234841,-1587.5598887,0.00016788,2]
[354445943,1740502234851,-420.0,0.00016793,2]
[354445944,1740502234861,-152.0,0.00017316,2]
[354445945,1740502234871,-152.0,0.00017706,2]
[354445946,1740502234881,-587.0,0.00018373,2]
[354445947,1740502234890,-692.46917811,0.000197,2]
[354445948,1740502234900,-160.0,0.0002,2]
[354445949,1740502234910,-823.0,0.00020101,2]
[354445950,1740502234921,-180.28846369,0.00021002,2]
[354445951,1740502234931,-4589.30148978,0.00021783,2]
[354445952,1740502234941,-1152.0,0.00021991,2]
[354445953,1740502234950,-755.0,0.0002406,2]
[354445954,1740502234960,-166.0,0.00024922,2]
[354445955,1740502234970,-4319.68211278,0.00025088,32]
[354445956,1740502234980,-156.78,0.000266,31]
[354445957,1740502234989,-180.28846369,0.00026755,2]
[354445958,1740502235000,-176.0,0.0003,2]
[354445959,1740502235010,-180.28846369,0.00032507,2]
[354445960,1740502235021,-259.74057562,0.00032566,2]
[354445961,1740502235031,-628.746,0.00034131,37]
[354445962,1740502235040,-175.19266628,0.00034131,37]
[354445963,1740502235050,-176.0,0.0003498,2]
[354445964,1740502235059,-435.4,0.0003498,3]
[354445965,1740502235069,-217.7,0.0003498,3]
[354445966,1740502235078,-653.13,0.0003498,3]
[354445967,1740502235088,-500.0,0.0003498,2]
[354445968,1740502235097,-1814.53,0.0003499,3]
[354445969,1740502235107,-1741.6,0.0003499,3]
[354445970,1740502235117,-870.8,0.0003499,3]
[354445971,1740502235126,-23227.8979709,0.0003499,3]
[354445972,1740502235136,-31429.01230011,0.00035,120]
[354445973,1740502235158,-19584.4124536,0.00035,120]
[354445974,1740502235170,-501.94280497,0.00035,5]